[Event "*** Titled Tuesday Blitz"]
[Site "Chess.com"]
[Date "2020.04.14"]
[Round "7"]
[White "GracefulYear"]
[Black "Stormeman100100"]
[Result "1-0"]
[WhiteElo "2684"]
[BlackElo "2454"]
[TimeControl "180+1"]
[EndTime "11:13:26 PDT"]
[Termination "GracefulYear won by resignation"]

1. d4 {[%clk 0:03:00.9]} 1... d5 {[%clk 0:02:56.5]} 2. c4 {[%clk 0:03:01.8]}
2... c6 {[%clk 0:02:53.5]} 3. Nf3 {[%clk 0:03:02.7]} 3... Nf6 {[%clk 0:02:53.1]}
4. g3 {[%clk 0:03:02.9]} 4... Bf5 {[%clk 0:02:49.6]} 5. Nc3 {[%clk 0:03:00.2]}
5... a6 {[%clk 0:02:45.1]} 6. Bg2 {[%clk 0:02:56.1]} 6... h6 {[%clk 0:02:34.8]}
7. O-O {[%clk 0:02:51.9]} 7... e6 {[%clk 0:02:32.6]} 8. Nd2 {[%clk 0:02:40.9]}
8... b5 {[%clk 0:02:28.9]} 9. cxb5 {[%clk 0:02:38.8]} 9... cxb5 {[%clk
0:02:28.1]} 10. e4 {[%clk 0:02:36.2]} 10... dxe4 {[%clk 0:02:28]} 11. Ndxe4
{[%clk 0:02:37.1]} 11... Nbd7 {[%clk 0:02:17.8]} 12. Nxf6+ {[%clk 0:02:25.3]}
12... Nxf6 {[%clk 0:02:18.7]} 13. Bxa8 {[%clk 0:02:23.5]} 13... Qxa8 {[%clk
0:02:19.6]} 14. f3 {[%clk 0:02:16.5]} 14... Be7 {[%clk 0:02:06.2]} 15. Be3
{[%clk 0:02:08.9]} 15... O-O {[%clk 0:02:02.2]} 16. Bf2 {[%clk 0:02:07.2]} 16...
b4 {[%clk 0:02:00.2]} 17. Na4 {[%clk 0:02:02]} 17... Bh3 {[%clk 0:01:50.8]} 18.
Re1 {[%clk 0:02:00]} 18... Ng4 {[%clk 0:01:50.9]} 19. Nc5 {[%clk 0:01:51]} 19...
Nxf2 {[%clk 0:01:48.5]} 20. Kxf2 {[%clk 0:01:49.8]} 20... Bf5 {[%clk 0:01:48.1]}
21. Ne4 {[%clk 0:01:47.3]} 21... Rd8 {[%clk 0:01:47]} 22. Rc1 {[%clk 0:01:46.5]}
22... Bf8 {[%clk 0:01:38.5]} 23. Kg2 {[%clk 0:01:38.6]} 23... Qd5 {[%clk
0:01:36.4]} 24. Rc2 {[%clk 0:01:27.9]} 24... Qxa2 {[%clk 0:01:30.3]} 25. Rd2
{[%clk 0:01:20.4]} 25... Qd5 {[%clk 0:01:16.9]} 26. Nf2 {[%clk 0:01:12.4]} 26...
a5 {[%clk 0:01:14.9]} 27. Re5 {[%clk 0:01:10.4]} 27... Qa2 {[%clk 0:01:08.5]}
28. d5 {[%clk 0:01:08.4]} 28... Qc4 {[%clk 0:00:39.5]} 29. dxe6 {[%clk
0:01:03.5]} 29... Rxd2 {[%clk 0:00:38.4]} 30. Qxd2 {[%clk 0:01:03.1]} 30... Bxe6
{[%clk 0:00:37.5]} 31. Rxa5 {[%clk 0:00:59.7]} 31... b3 {[%clk 0:00:37.1]} 32.
Ra8 {[%clk 0:00:55.5]} 32... Bd5 {[%clk 0:00:36.8]} 33. Rd8 {[%clk 0:00:54.6]}
33... Bb7 {[%clk 0:00:14.3]} 34. Rxf8+ {[%clk 0:00:51.1]} 34... Kh7 {[%clk
0:00:13.3]} 35. Qd3+ {[%clk 0:00:50.5]} 35... Qxd3 {[%clk 0:00:13.4]} 36. Nxd3
{[%clk 0:00:51.4]} 1-0

[Event "*** Titled Tuesday Blitz"]
[Site "Chess.com"]
[Date "2020.04.14"]
[Round "7"]
[White "Perimir"]
[Black "Riazantsev"]
[Result "0-1"]
[WhiteElo "2437"]
[BlackElo "2627"]
[TimeControl "180+1"]
[EndTime "11:13:26 PDT"]
[Termination "Riazantsev won by resignation"]

1. e4 {[%clk 0:03:00.7]} 1... e6 {[%clk 0:02:58.4]} 2. d4 {[%clk 0:02:59.5]}
2... d5 {[%clk 0:02:58.1]} 3. Nc3 {[%clk 0:03:00.2]} 3... Nc6 {[%clk 0:02:57.8]}
4. Bb5 {[%clk 0:02:57.9]} 4... Nf6 {[%clk 0:02:45.7]} 5. Bxc6+ {[%clk
0:02:57.6]} 5... bxc6 {[%clk 0:02:45]} 6. e5 {[%clk 0:02:57.9]} 6... Nd7 {[%clk
0:02:44.4]} 7. Nce2 {[%clk 0:02:58.3]} 7... c5 {[%clk 0:02:44.6]} 8. c3 {[%clk
0:02:58.7]} 8... cxd4 {[%clk 0:02:44.7]} 9. cxd4 {[%clk 0:02:58.8]} 9... c5
{[%clk 0:02:45]} 10. Nf3 {[%clk 0:02:49.6]} 10... Ba6 {[%clk 0:02:44.9]} 11. O-O
{[%clk 0:02:45.6]} 11... Be7 {[%clk 0:02:45]} 12. Re1 {[%clk 0:02:45.4]} 12...
O-O {[%clk 0:02:44.3]} 13. Be3 {[%clk 0:02:36.8]} 13... Rb8 {[%clk 0:02:42.9]}
14. b3 {[%clk 0:02:37]} 14... c4 {[%clk 0:02:40.3]} 15. bxc4 {[%clk 0:02:35.4]}
15... Bxc4 {[%clk 0:02:39.5]} 16. Nf4 {[%clk 0:02:28.6]} 16... Rb2 {[%clk
0:02:33.5]} 17. Nd2 {[%clk 0:02:12.7]} 17... Bb4 {[%clk 0:02:32.7]} 18. Nxc4
{[%clk 0:02:07.3]} 18... dxc4 {[%clk 0:02:32.4]} 19. Re2 {[%clk 0:02:05.4]}
19... Rxe2 {[%clk 0:02:31.1]} 20. Nxe2 {[%clk 0:02:03.6]} 20... Nb6 {[%clk
0:02:30.5]} 21. Qc2 {[%clk 0:02:00.7]} 21... Qd5 {[%clk 0:02:28.4]} 22. a3
{[%clk 0:01:52]} 22... Be7 {[%clk 0:02:27]} 23. Nc3 {[%clk 0:01:50.7]} 23... Qc6
{[%clk 0:02:26.9]} 24. a4 {[%clk 0:01:48.6]} 24... Rc8 {[%clk 0:02:26.7]} 25.
Nb5 {[%clk 0:01:39]} 25... Qd7 {[%clk 0:02:23]} 26. Rb1 {[%clk 0:01:14.9]} 26...
Nd5 {[%clk 0:02:21.1]} 27. a5 {[%clk 0:01:10.4]} 27... a6 {[%clk 0:02:17.9]} 28.
Nc3 {[%clk 0:01:08.6]} 28... h6 {[%clk 0:02:17.4]} 29. Na4 {[%clk 0:01:05.7]}
29... Qc6 {[%clk 0:02:09.3]} 30. Nb6 {[%clk 0:00:57.1]} 30... Rb8 {[%clk
0:02:09.1]} 31. Nxd5 {[%clk 0:00:40.8]} 31... Rxb1+ {[%clk 0:02:08.9]} 32. Qxb1
{[%clk 0:00:41.7]} 32... exd5 {[%clk 0:02:09.5]} 33. Qb6 {[%clk 0:00:35.6]}
33... Qc8 {[%clk 0:02:05]} 34. Bc1 {[%clk 0:00:28.3]} 34... c3 {[%clk
0:02:04.7]} 35. Kf1 {[%clk 0:00:24.3]} 35... Qc4+ {[%clk 0:02:02.8]} 36. Ke1
{[%clk 0:00:24.8]} 36... Bb4 {[%clk 0:02:01]} 37. Qd8+ {[%clk 0:00:12.8]} 37...
Kh7 {[%clk 0:02:00.4]} 38. f4 {[%clk 0:00:11.4]} 38... c2+ {[%clk 0:01:55.8]}
39. Kf2 {[%clk 0:00:11.7]} 39... Qxd4+ {[%clk 0:01:56.1]} 40. Kf3 {[%clk
0:00:11.7]} 40... Bd2 {[%clk 0:01:54.2]} 41. Qd7 {[%clk 0:00:10.9]} 41... Qd3+
{[%clk 0:01:53.4]} 42. Kg4 {[%clk 0:00:10.4]} 42... Bxc1 {[%clk 0:01:53.1]} 43.
Qxf7 {[%clk 0:00:09.9]} 43... Ba3 {[%clk 0:01:48.7]} 44. f5 {[%clk 0:00:09.4]}
44... Qe4+ {[%clk 0:01:48.7]} 45. Kg3 {[%clk 0:00:09.1]} 45... Qxe5+ {[%clk
0:01:46.9]} 46. Kg4 {[%clk 0:00:09.2]} 46... c1=Q {[%clk 0:01:42.3]} 47. Qg6+
{[%clk 0:00:08.3]} 47... Kg8 {[%clk 0:01:41.8]} 48. Qe8+ {[%clk 0:00:08.9]}
48... Qxe8 {[%clk 0:01:41.5]} 0-1

[Event "*** Titled Tuesday Blitz"]
[Site "Chess.com"]
[Date "2020.04.14"]
[Round "7"]
[White "Qingdom"]
[Black "Justinz"]
[Result "0-1"]
[WhiteElo "2093"]
[BlackElo "2268"]
[TimeControl "180+1"]
[EndTime "11:13:28 PDT"]
[Termination "Justinz won by resignation"]

1. d4 {[%clk 0:03:00.9]} 1... Nf6 {[%clk 0:02:58.8]} 2. Bg5 {[%clk 0:03:00.8]}
2... e6 {[%clk 0:02:58.1]} 3. e4 {[%clk 0:03:00.3]} 3... h6 {[%clk 0:02:57.8]}
4. Bxf6 {[%clk 0:03:00.3]} 4... Qxf6 {[%clk 0:02:58.2]} 5. c3 {[%clk 0:03:00.8]}
5... g6 {[%clk 0:02:56.9]} 6. Bd3 {[%clk 0:03:00.4]} 6... Bg7 {[%clk 0:02:56.8]}
7. Nd2 {[%clk 0:02:58.8]} 7... d6 {[%clk 0:02:56.8]} 8. Ne2 {[%clk 0:02:58.2]}
8... e5 {[%clk 0:02:56.1]} 9. O-O {[%clk 0:02:57.1]} 9... O-O {[%clk 0:02:54.7]}
10. f4 {[%clk 0:02:56.5]} 10... exd4 {[%clk 0:02:54.7]} 11. cxd4 {[%clk
0:02:56.2]} 11... Bg4 {[%clk 0:02:53.8]} 12. Nf3 {[%clk 0:02:53.2]} 12... Nc6
{[%clk 0:02:51.1]} 13. d5 {[%clk 0:02:44.1]} 13... Nb4 {[%clk 0:02:25.8]} 14. e5
{[%clk 0:02:41.7]} 14... dxe5 {[%clk 0:02:22.3]} 15. fxe5 {[%clk 0:02:41.4]}
15... Qb6+ {[%clk 0:02:20.6]} 16. Kh1 {[%clk 0:02:37.7]} 16... Nxd3 {[%clk
0:02:16.1]} 17. Qxd3 {[%clk 0:02:37.3]} 17... Bxf3 {[%clk 0:02:16.3]} 18. Qxf3
{[%clk 0:02:27.8]} 18... Bxe5 {[%clk 0:01:44.3]} 19. Rab1 {[%clk 0:02:20.8]}
19... Rad8 {[%clk 0:01:42.9]} 20. b3 {[%clk 0:02:20.2]} 20... Bg7 {[%clk
0:01:39.5]} 21. Rbc1 {[%clk 0:02:19.4]} 21... Rd7 {[%clk 0:01:38.9]} 22. Rc4
{[%clk 0:02:18.7]} 22... Kh7 {[%clk 0:01:36.1]} 23. h3 {[%clk 0:02:13.8]} 23...
Qd6 {[%clk 0:01:35.2]} 24. Rf4 {[%clk 0:02:06.8]} 24... f5 {[%clk 0:01:28.6]}
25. g4 {[%clk 0:02:05.7]} 25... Qxd5 {[%clk 0:01:27.1]} 26. gxf5 {[%clk
0:02:03.5]} 26... Rxf5 {[%clk 0:01:22]} 27. Rxf5 {[%clk 0:02:02.9]} 27... gxf5
{[%clk 0:01:21.8]} 28. Ng3 {[%clk 0:01:59.1]} 28... Qxf3+ {[%clk 0:01:12.4]} 29.
Rxf3 {[%clk 0:01:58.6]} 29... Rd1+ {[%clk 0:01:12.8]} 30. Kg2 {[%clk 0:01:58.1]}
30... Rd2+ {[%clk 0:01:10.9]} 31. Rf2 {[%clk 0:01:53.5]} 31... Rxf2+ {[%clk
0:01:09.5]} 32. Kxf2 {[%clk 0:01:54.1]} 32... f4 {[%clk 0:01:09.6]} 33. Ne4
{[%clk 0:01:45]} 33... Kg6 {[%clk 0:01:08.7]} 34. Nc5 {[%clk 0:01:44.1]} 34...
b6 {[%clk 0:01:06.8]} 35. Ne6 {[%clk 0:01:42.1]} 35... Be5 {[%clk 0:01:06.7]}
36. Kf3 {[%clk 0:01:42.6]} 36... Kf5 {[%clk 0:01:04.7]} 37. Nd8 {[%clk
0:01:41.8]} 37... c5 {[%clk 0:01:00]} 38. Nc6 {[%clk 0:01:41.6]} 38... a6 {[%clk
0:00:59.9]} 39. a4 {[%clk 0:01:39.9]} 39... b5 {[%clk 0:00:59.4]} 40. axb5
{[%clk 0:01:27.8]} 40... axb5 {[%clk 0:01:00.3]} 41. Na7 {[%clk 0:01:25.5]}
41... c4 {[%clk 0:00:58.6]} 42. bxc4 {[%clk 0:01:22.2]} 42... bxc4 {[%clk
0:00:59.5]} 43. Nc6 {[%clk 0:01:20.2]} 43... c3 {[%clk 0:00:56.2]} 44. Nb4
{[%clk 0:01:20.1]} 44... Bd6 {[%clk 0:00:52.8]} 45. Nc2 {[%clk 0:01:19.3]} 45...
Ke5 {[%clk 0:00:53]} 46. Ne1 {[%clk 0:01:15.8]} 46... Kd5 {[%clk 0:00:52.4]} 47.
h4 {[%clk 0:01:11.1]} 47... Kc4 {[%clk 0:00:52]} 48. Ke4 {[%clk 0:01:10.5]}
48... Kb3 {[%clk 0:00:48.7]} 49. Kd3 {[%clk 0:01:10.5]} 49... Kb2 {[%clk
0:00:46.5]} 50. h5 {[%clk 0:01:07.1]} 50... f3 {[%clk 0:00:43.3]} 51. Nxf3
{[%clk 0:01:03.9]} 51... c2 {[%clk 0:00:42.5]} 0-1

[Event "*** Titled Tuesday Blitz"]
[Site "Chess.com"]
[Date "2020.04.14"]
[Round "7"]
[White "JustWatch000"]
[Black "GelmanAlexander"]
[Result "0-1"]
[WhiteElo "2619"]
[BlackElo "2473"]
[TimeControl "180+1"]
[EndTime "11:13:29 PDT"]
[Termination "GelmanAlexander won by resignation"]

1. Nf3 {[%clk 0:03:00.9]} 1... c5 {[%clk 0:02:59.3]} 2. c4 {[%clk 0:03:01.2]}
2... Nf6 {[%clk 0:02:59.1]} 3. Nc3 {[%clk 0:03:01.7]} 3... e6 {[%clk 0:02:59.2]}
4. d4 {[%clk 0:02:59.8]} 4... cxd4 {[%clk 0:02:58]} 5. Nxd4 {[%clk 0:03:00.7]}
5... d6 {[%clk 0:02:56.8]} 6. e4 {[%clk 0:03:00.3]} 6... b6 {[%clk 0:02:57.3]}
7. Be2 {[%clk 0:03:00.8]} 7... Bb7 {[%clk 0:02:57.3]} 8. f3 {[%clk 0:03:01.4]}
8... a6 {[%clk 0:02:56.5]} 9. O-O {[%clk 0:03:01.3]} 9... Nbd7 {[%clk 0:02:57]}
10. Be3 {[%clk 0:03:01.7]} 10... Rg8 {[%clk 0:02:56.8]} 11. Qd2 {[%clk
0:03:02.2]} 11... h6 {[%clk 0:02:56.8]} 12. b3 {[%clk 0:02:35.3]} 12... g5
{[%clk 0:02:56.3]} 13. Bd3 {[%clk 0:02:35.1]} 13... Rc8 {[%clk 0:02:54.9]} 14.
Rad1 {[%clk 0:02:33.7]} 14... Ne5 {[%clk 0:02:52.2]} 15. Bb1 {[%clk 0:02:33.2]}
15... Nfd7 {[%clk 0:02:47.3]} 16. f4 {[%clk 0:02:27.3]} 16... gxf4 {[%clk
0:02:46.4]} 17. Bxf4 {[%clk 0:02:28.2]} 17... Qh4 {[%clk 0:02:29.8]} 18. Bg3
{[%clk 0:02:27.8]} 18... Rxg3 {[%clk 0:02:21.9]} 19. hxg3 {[%clk 0:02:27.1]}
19... Qxg3 {[%clk 0:02:22.5]} 20. Qf2 {[%clk 0:02:21]} 20... Qxc3 {[%clk
0:02:14.1]} 21. Nxe6 {[%clk 0:01:44.6]} 21... fxe6 {[%clk 0:02:00.6]} 22. Rc1
{[%clk 0:01:43.9]} 22... Qa5 {[%clk 0:01:50.1]} 23. Qg3 {[%clk 0:01:40.4]} 23...
Qd2 {[%clk 0:01:28.9]} 24. Qh3 {[%clk 0:01:35.5]} 24... Ke7 {[%clk 0:01:12.4]}
25. Rcd1 {[%clk 0:01:31.7]} 25... Qg5 {[%clk 0:01:11.8]} 26. Rf2 {[%clk
0:01:26.5]} 26... Ng4 {[%clk 0:01:04.1]} 27. Rf3 {[%clk 0:01:22.9]} 27... Nde5
{[%clk 0:01:03.8]} 28. Rg3 {[%clk 0:01:16.8]} 28... Bg7 {[%clk 0:01:02.4]} 29.
Bd3 {[%clk 0:01:12.9]} 29... Rf8 {[%clk 0:01:01.6]} 30. Be2 {[%clk 0:01:12.8]}
30... h5 {[%clk 0:00:55.6]} 31. b4 {[%clk 0:01:06.5]} 31... Bxe4 {[%clk
0:00:54.4]} 32. c5 {[%clk 0:01:04.9]} 32... bxc5 {[%clk 0:00:54.6]} 33. bxc5
{[%clk 0:01:03.1]} 33... dxc5 {[%clk 0:00:55.1]} 34. Rb3 {[%clk 0:01:00.3]}
34... Nf2 {[%clk 0:00:49]} 35. Qh2 {[%clk 0:00:52.9]} 35... Nxd1 {[%clk
0:00:46.9]} 36. Bxd1 {[%clk 0:00:53.8]} 36... Qd2 {[%clk 0:00:41.2]} 37. Qh4+
{[%clk 0:00:52.9]} 37... Bf6 {[%clk 0:00:39.8]} 38. Qxe4 {[%clk 0:00:52.3]}
38... Qxd1+ {[%clk 0:00:39.9]} 39. Kh2 {[%clk 0:00:48.4]} 39... Ng4+ {[%clk
0:00:40.1]} 40. Kg3 {[%clk 0:00:47.6]} 40... Be5+ {[%clk 0:00:38.8]} 0-1

[Event "*** Titled Tuesday Blitz"]
[Site "Chess.com"]
[Date "2020.04.14"]
[Round "7"]
[White "1g41-0"]
[Black "BAS8892"]
[Result "0-1"]
[WhiteElo "2498"]
[BlackElo "2662"]
[TimeControl "180+1"]
[EndTime "11:13:31 PDT"]
[Termination "BAS8892 won on time"]

1. d4 {[%clk 0:03:00.9]} 1... d5 {[%clk 0:02:59.7]} 2. c4 {[%clk 0:03:00.9]}
2... c6 {[%clk 0:03:00]} 3. Nc3 {[%clk 0:03:01.3]} 3... Nf6 {[%clk 0:02:58.2]}
4. Nf3 {[%clk 0:03:01.5]} 4... dxc4 {[%clk 0:02:58]} 5. a4 {[%clk 0:03:00.6]}
5... Bf5 {[%clk 0:02:57.3]} 6. e3 {[%clk 0:03:00.4]} 6... e6 {[%clk 0:02:57.2]}
7. Bxc4 {[%clk 0:03:00.6]} 7... Nbd7 {[%clk 0:02:56.8]} 8. O-O {[%clk
0:03:00.5]} 8... Bb4 {[%clk 0:02:56.2]} 9. Qe2 {[%clk 0:02:56.3]} 9... Bg6
{[%clk 0:02:53.1]} 10. Nh4 {[%clk 0:02:45.7]} 10... Bh5 {[%clk 0:02:49.9]} 11.
Nf3 {[%clk 0:02:36.3]} 11... O-O {[%clk 0:02:47.5]} 12. Rd1 {[%clk 0:02:34.6]}
12... Qe7 {[%clk 0:02:46.9]} 13. e4 {[%clk 0:02:32.2]} 13... e5 {[%clk
0:02:46.8]} 14. d5 {[%clk 0:02:25.1]} 14... Nb6 {[%clk 0:02:40]} 15. Bb3 {[%clk
0:02:19.9]} 15... Bxc3 {[%clk 0:02:38.1]} 16. d6 {[%clk 0:02:13.7]} 16... Qd7
{[%clk 0:02:28.7]} 17. bxc3 {[%clk 0:02:11.4]} 17... Rfe8 {[%clk 0:02:27.6]} 18.
a5 {[%clk 0:02:08.7]} 18... Nc8 {[%clk 0:02:26.3]} 19. Qd3 {[%clk 0:02:00.6]}
19... Bg6 {[%clk 0:02:22]} 20. Nh4 {[%clk 0:01:29.7]} 20... Bxe4 {[%clk
0:02:20.2]} 21. Qe2 {[%clk 0:01:29.8]} 21... Bd5 {[%clk 0:02:19.3]} 22. c4
{[%clk 0:01:26.5]} 22... Be6 {[%clk 0:02:15.5]} 23. Bg5 {[%clk 0:01:23.8]} 23...
Ng4 {[%clk 0:02:14.1]} 24. Bc2 {[%clk 0:01:14.2]} 24... h6 {[%clk 0:02:11.4]}
25. Qd3 {[%clk 0:01:05.4]} 25... f5 {[%clk 0:02:10.1]} 26. Nxf5 {[%clk
0:00:51.4]} 26... hxg5 {[%clk 0:01:45.5]} 27. Ne7+ {[%clk 0:00:34.9]} 27... Nxe7
{[%clk 0:01:44.7]} 28. Qh7+ {[%clk 0:00:34.1]} 28... Kf8 {[%clk 0:01:44.4]} 29.
dxe7+ {[%clk 0:00:33.2]} 29... Qxe7 {[%clk 0:01:44.4]} 30. Qh8+ {[%clk
0:00:13.9]} 30... Bg8 {[%clk 0:01:43.6]} 31. c5 {[%clk 0:00:13.2]} 31... Qxc5
{[%clk 0:01:38.7]} 32. Bb3 {[%clk 0:00:08.6]} 32... Nf6 {[%clk 0:01:36.9]} 33.
Qh3 {[%clk 0:00:03.3]} 33... Rad8 {[%clk 0:01:32.9]} 34. Bxg8 {[%clk 0:00:02.9]}
34... Kxg8 {[%clk 0:01:32.3]} 35. Qb3+ {[%clk 0:00:03.5]} 35... Kf8 {[%clk
0:01:29.2]} 36. Rxd8 {[%clk 0:00:04.4]} 36... Rxd8 {[%clk 0:01:28.9]} 37. Qxb7
{[%clk 0:00:04.2]} 37... Rd2 {[%clk 0:01:26]} 38. Rf1 {[%clk 0:00:02]} 38...
Qxa5 {[%clk 0:01:24.2]} 39. Qc8+ {[%clk 0:00:02.1]} 39... Kf7 {[%clk 0:01:23.3]}
40. Qxc6 {[%clk 0:00:02.7]} 40... Qb6 {[%clk 0:01:18.4]} 41. Qc3 {[%clk
0:00:02.2]} 41... Rb2 {[%clk 0:01:16.8]} 42. Qc4+ {[%clk 0:00:01.9]} 42... Kg6
{[%clk 0:01:12.9]} 43. Qc8 {[%clk 0:00:01.6]} 43... e4 {[%clk 0:01:11.7]} 0-1

[Event "*** Titled Tuesday Blitz"]
[Site "Chess.com"]
[Date "2020.04.14"]
[Round "7"]
[White "1f3_2g41-0"]
[Black "Usurpov"]
[Result "0-1"]
[WhiteElo "2189"]
[BlackElo "2426"]
[TimeControl "180+1"]
[EndTime "11:13:31 PDT"]
[Termination "Usurpov won by resignation"]

1. e4 {[%clk 0:03:00.9]} 1... c5 {[%clk 0:02:59.7]} 2. Nf3 {[%clk 0:03:00.8]}
2... e6 {[%clk 0:03:00.1]} 3. d4 {[%clk 0:03:00.4]} 3... cxd4 {[%clk 0:03:01]}
4. Nxd4 {[%clk 0:03:00]} 4... Nf6 {[%clk 0:03:01.4]} 5. Nc3 {[%clk 0:03:00.2]}
5... Nc6 {[%clk 0:03:01.8]} 6. Bg5 {[%clk 0:02:56.7]} 6... Bb4 {[%clk
0:02:57.6]} 7. Nxc6 {[%clk 0:02:53.4]} 7... bxc6 {[%clk 0:02:58.5]} 8. Qd4
{[%clk 0:02:45.7]} 8... c5 {[%clk 0:02:32.8]} 9. Qd6 {[%clk 0:02:30.6]} 9... Qa5
{[%clk 0:02:10.6]} 10. Bxf6 {[%clk 0:02:08]} 10... gxf6 {[%clk 0:02:08.4]} 11.
Qd2 {[%clk 0:02:06.3]} 11... Bb7 {[%clk 0:02:04.2]} 12. Bd3 {[%clk 0:02:04.1]}
12... d5 {[%clk 0:01:56.8]} 13. exd5 {[%clk 0:01:54.5]} 13... Bxd5 {[%clk
0:01:56]} 14. O-O {[%clk 0:01:49.9]} 14... Bxc3 {[%clk 0:01:43.1]} 15. bxc3
{[%clk 0:01:41.1]} 15... c4 {[%clk 0:01:32]} 16. Be2 {[%clk 0:01:39.7]} 16...
O-O {[%clk 0:01:23.2]} 17. Qf4 {[%clk 0:01:11.5]} 17... Qxc3 {[%clk 0:01:13.6]}
18. a4 {[%clk 0:00:59]} 18... Kh8 {[%clk 0:01:11]} 19. Ra3 {[%clk 0:00:55.6]}
19... Qe5 {[%clk 0:01:07.5]} 20. Qh4 {[%clk 0:00:53.8]} 20... Rg8 {[%clk
0:01:04.8]} 21. Bf3 {[%clk 0:00:52.5]} 21... Qg5 {[%clk 0:00:50.1]} 22. Qh3
{[%clk 0:00:45.8]} 22... Rad8 {[%clk 0:00:46.2]} 23. Bxd5 {[%clk 0:00:40.6]}
23... Qxd5 {[%clk 0:00:45]} 24. Rf3 {[%clk 0:00:38.6]} 24... Rg6 {[%clk
0:00:43]} 25. Re1 {[%clk 0:00:33.3]} 25... Kg7 {[%clk 0:00:42.1]} 26. Rfe3
{[%clk 0:00:26.1]} 26... Rd6 {[%clk 0:00:34]} 27. f3 {[%clk 0:00:24.1]} 27...
Qd2 {[%clk 0:00:31.9]} 28. R3e2 {[%clk 0:00:22.8]} 28... Qd4+ {[%clk 0:00:32]}
29. Kh1 {[%clk 0:00:22.4]} 29... c3 {[%clk 0:00:32.1]} 30. Re3 {[%clk
0:00:19.3]} 30... Qxe3 {[%clk 0:00:29.6]} 0-1

[Event "*** Titled Tuesday Blitz"]
[Site "Chess.com"]
[Date "2020.04.14"]
[Round "7"]
[White "bait_or_mate"]
[Black "profofchess"]
[Result "1-0"]
[WhiteElo "2575"]
[BlackElo "2398"]
[TimeControl "180+1"]
[EndTime "11:13:32 PDT"]
[Termination "bait_or_mate won on time"]

1. d4 {[%clk 0:03:00.9]} 1... Nf6 {[%clk 0:02:59.6]} 2. c4 {[%clk 0:03:00.6]}
2... c5 {[%clk 0:02:59.6]} 3. Nf3 {[%clk 0:03:00.4]} 3... cxd4 {[%clk
0:02:59.2]} 4. Nxd4 {[%clk 0:03:01.3]} 4... e5 {[%clk 0:02:59]} 5. Nb5 {[%clk
0:02:59.2]} 5... d5 {[%clk 0:02:58.1]} 6. cxd5 {[%clk 0:02:59]} 6... Bc5 {[%clk
0:02:53.8]} 7. g3 {[%clk 0:02:58.2]} 7... Ng4 {[%clk 0:02:44.7]} 8. e3 {[%clk
0:02:56]} 8... f5 {[%clk 0:02:43.8]} 9. h3 {[%clk 0:02:42.6]} 9... Nf6 {[%clk
0:02:39]} 10. N1c3 {[%clk 0:02:23.2]} 10... a6 {[%clk 0:02:30.5]} 11. Na3 {[%clk
0:02:18]} 11... b5 {[%clk 0:02:30.2]} 12. Nc2 {[%clk 0:02:13.5]} 12... Bb7
{[%clk 0:02:06.5]} 13. Bg2 {[%clk 0:02:13.5]} 13... e4 {[%clk 0:02:05.3]} 14.
Nd4 {[%clk 0:02:11.2]} 14... b4 {[%clk 0:01:34.9]} 15. Na4 {[%clk 0:02:08.8]}
15... Bxd4 {[%clk 0:01:28]} 16. Qxd4 {[%clk 0:02:09.7]} 16... Qxd5 {[%clk
0:01:27.6]} 17. Qxb4 {[%clk 0:01:58.5]} 17... Nbd7 {[%clk 0:00:48.9]} 18. O-O
{[%clk 0:01:52.4]} 18... Qb5 {[%clk 0:00:34.7]} 19. Qa3 {[%clk 0:01:41.6]} 19...
Qa5 {[%clk 0:00:25.1]} 20. b4 {[%clk 0:01:23.4]} 20... Qc7 {[%clk 0:00:17.2]}
21. Bb2 {[%clk 0:01:20]} 21... O-O {[%clk 0:00:17.1]} 22. Rac1 {[%clk
0:01:20.2]} 22... Qd6 {[%clk 0:00:12.4]} 23. Rfd1 {[%clk 0:01:20.2]} 23... Qe6
{[%clk 0:00:12.3]} 24. Nc5 {[%clk 0:01:18.5]} 24... Nxc5 {[%clk 0:00:11.7]} 25.
bxc5 {[%clk 0:01:18.2]} 25... Rfd8 {[%clk 0:00:06.1]} 26. Bf1 {[%clk 0:01:16]}
26... Bd5 {[%clk 0:00:04.2]} 27. Bxf6 {[%clk 0:00:59.4]} 27... gxf6 {[%clk
0:00:03.8]} 28. Rxd5 {[%clk 0:00:56.9]} 28... Rxd5 {[%clk 0:00:02.4]} 29. Bc4
{[%clk 0:00:56.4]} 29... Rd1+ {[%clk 0:00:02.1]} 30. Kg2 {[%clk 0:00:50.7]}
30... Rd5 {[%clk 0:00:02]} 31. Rd1 {[%clk 0:00:47.1]} 31... Rad8 {[%clk
0:00:01.4]} 32. Qb3 {[%clk 0:00:46.3]} 1-0

[Event "*** Titled Tuesday Blitz"]
[Site "Chess.com"]
[Date "2020.04.14"]
[Round "7"]
[White "BlueWizzard"]
[Black "ElliPaehtz"]
[Result "1-0"]
[WhiteElo "2777"]
[BlackElo "2568"]
[TimeControl "180+1"]
[EndTime "11:13:33 PDT"]
[Termination "BlueWizzard won by resignation"]

1. d4 {[%clk 0:03:00.9]} 1... e6 {[%clk 0:02:59.3]} 2. Nc3 {[%clk 0:02:59.1]}
2... d5 {[%clk 0:02:56.9]} 3. a3 {[%clk 0:02:57]} 3... Nf6 {[%clk 0:02:55.3]} 4.
Bg5 {[%clk 0:02:56.7]} 4... Be7 {[%clk 0:02:54.1]} 5. Nf3 {[%clk 0:02:56.6]}
5... O-O {[%clk 0:02:53.8]} 6. Bxf6 {[%clk 0:02:56.4]} 6... Bxf6 {[%clk
0:02:53]} 7. e4 {[%clk 0:02:57.3]} 7... c5 {[%clk 0:02:52]} 8. e5 {[%clk
0:02:55.5]} 8... Be7 {[%clk 0:02:51.6]} 9. dxc5 {[%clk 0:02:53.9]} 9... b6
{[%clk 0:02:47.8]} 10. c6 {[%clk 0:02:50.7]} 10... Nxc6 {[%clk 0:02:47.1]} 11.
Bd3 {[%clk 0:02:51]} 11... f6 {[%clk 0:02:37.5]} 12. Qe2 {[%clk 0:02:45.5]}
12... fxe5 {[%clk 0:02:35.4]} 13. Nxe5 {[%clk 0:02:45.1]} 13... Nxe5 {[%clk
0:02:35.3]} 14. Qxe5 {[%clk 0:02:45.9]} 14... Bf6 {[%clk 0:02:35]} 15. Qe2
{[%clk 0:02:41.5]} 15... Bd7 {[%clk 0:02:09.7]} 16. O-O {[%clk 0:02:38.6]} 16...
Rc8 {[%clk 0:02:09.4]} 17. Nd1 {[%clk 0:02:10.9]} 17... e5 {[%clk 0:02:05.5]}
18. Ne3 {[%clk 0:02:07.7]} 18... Bc6 {[%clk 0:02:00.1]} 19. Rad1 {[%clk
0:02:06.1]} 19... Qe8 {[%clk 0:01:47.4]} 20. Ba6 {[%clk 0:01:45.5]} 20... Rd8
{[%clk 0:01:47]} 21. c4 {[%clk 0:01:45.5]} 21... d4 {[%clk 0:01:43.6]} 22. Nd5
{[%clk 0:01:45]} 22... Kh8 {[%clk 0:01:32.8]} 23. Rfe1 {[%clk 0:01:29.8]} 23...
Bxd5 {[%clk 0:01:31.8]} 24. cxd5 {[%clk 0:01:30.7]} 24... Rxd5 {[%clk
0:01:30.1]} 25. Bd3 {[%clk 0:01:31.1]} 25... g6 {[%clk 0:01:23.2]} 26. f4 {[%clk
0:01:26.4]} 26... Qd8 {[%clk 0:01:18]} 27. f5 {[%clk 0:01:23.3]} 27... Bg7
{[%clk 0:00:51.3]} 28. fxg6 {[%clk 0:01:19.1]} 28... h6 {[%clk 0:00:51.4]} 29.
Rf1 {[%clk 0:01:18.5]} 29... Rd6 {[%clk 0:00:48.7]} 30. Rf7 {[%clk 0:00:57.5]}
30... Rf6 {[%clk 0:00:44.6]} 31. Qe4 {[%clk 0:00:54.2]} 31... Qd6 {[%clk
0:00:39.2]} 32. Rxg7 {[%clk 0:00:47.5]} 32... Kxg7 {[%clk 0:00:37.7]} 33. Qb7+
{[%clk 0:00:46.6]} 33... R8f7 {[%clk 0:00:27.1]} 34. gxf7 {[%clk 0:00:46.1]}
34... Rxf7 {[%clk 0:00:22.7]} 35. Qe4 {[%clk 0:00:45.3]} 35... Qf6 {[%clk
0:00:21.9]} 36. Rf1 {[%clk 0:00:39]} 1-0